[Event "ONJK 2024 ABC"]
[Site "Velp, Netherlands"]
[Date "2024.08.05"]
[Round "4.14"]
[White "Dijkhuijsen, Thomas"]
[Black "De Jong, Lode"]
[Result "1/2-1/2"]
[TimeControl "90 minutes + 30 seconds"]
[WhiteElo "1750"]
[BlackElo "1755"]

1. e4 {[%clk 01:30:59]} {[%emt 38:40:28]} c5 {[%clk 01:30:55]} {[%emt
00:00:05]} 2. Nf3 {[%clk 01:31:24]} {[%emt 00:00:04]} d6 {[%clk 01:31:22]}
{[%emt 00:00:04]} 3. d4 {[%clk 01:31:49]} {[%emt 00:00:05]} cxd4 {[%clk
01:31:49]} {[%emt 00:00:04]} 4. Nxd4 {[%clk 01:32:11]} {[%emt 00:00:06]} Nf6
{[%clk 01:32:16]} {[%emt 00:00:04]} 5. Nc3 {[%clk 01:32:34]} {[%emt 00:00:08]}
a6 {[%clk 01:32:44]} {[%emt 00:00:02]} 6. Bd3 {[%clk 01:31:04]} {[%emt
00:01:59]} e5 {[%clk 01:33:02]} {[%emt 00:00:13]} 7. Nf3 {[%clk 01:31:22]}
{[%emt 00:00:11]} Be7 {[%clk 01:33:11]} {[%emt 00:00:21]} 8. b3 {[%clk
01:29:12]} {[%emt 00:02:40]} b5 {[%clk 01:32:53]} {[%emt 00:00:48]} 9. Ne2
{[%clk 01:25:34]} {[%emt 00:04:07]} Bb7 {[%clk 01:32:35]} {[%emt 00:00:49]} 10.
Ng3 {[%clk 01:25:54]} {[%emt 00:00:09]} Nbd7 {[%clk 01:29:03]} {[%emt
00:04:03]} 11. O-O {[%clk 01:17:38]} {[%emt 00:08:46]} O-O {[%clk 01:27:28]}
{[%emt 00:02:05]} 12. Ba3 {[%clk 01:16:42]} {[%emt 00:01:27]} g6 {[%clk
01:18:56]} {[%emt 00:09:01]} 13. Re1 {[%clk 01:13:08]} {[%emt 00:04:02]} Re8
{[%clk 01:18:21]} {[%emt 00:01:07]} 14. c4 {[%clk 01:12:20]} {[%emt 00:01:17]}
Qb6 {[%clk 01:12:50]} {[%emt 00:06:02]} 15. Qd2 {[%clk 01:08:35]} {[%emt
00:04:15]} Nc5 {[%clk 01:09:22]} {[%emt 00:03:58]} 16. Bxc5 {[%clk 00:56:04]}
{[%emt 00:12:59]} Qxc5 {[%clk 01:00:35]} {[%emt 00:09:18]} 17. Rac1 {[%clk
00:51:55]} {[%emt 00:04:39]} Qb6 {[%clk 00:58:50]} {[%emt 00:02:15]} 18. Qe3
{[%clk 00:46:43]} {[%emt 00:05:42]} Qxe3 {[%clk 00:52:36]} {[%emt 00:06:45]} 19.
Rxe3 {[%clk 00:46:56]} {[%emt 00:00:16]} Bf8 {[%clk 00:49:48]} {[%emt
00:03:19]} 20. Ree1 {[%clk 00:44:53]} {[%emt 00:02:32]} Bh6 {[%clk 00:48:07]}
{[%emt 00:02:13]} 21. Rcd1 {[%clk 00:42:59]} {[%emt 00:02:24]} bxc4 {[%clk
00:47:33]} {[%emt 00:01:04]} 22. Bxc4 {[%clk 00:42:56]} {[%emt 00:00:32]} Red8
{[%clk 00:47:46]} {[%emt 00:00:18]} 23. h4 {[%clk 00:32:48]} {[%emt 00:10:37]}
Bf4 {[%clk 00:40:22]} {[%emt 00:07:55]} 24. Ng5 {[%clk 00:32:24]} {[%emt
00:00:54]} d5 {[%clk 00:32:47]} {[%emt 00:08:05]} 25. exd5 {[%clk 00:25:41]}
{[%emt 00:07:12]} Bxd5 {[%clk 00:33:03]} {[%emt 00:00:15]} 26. Bxd5 {[%clk
00:25:50]} {[%emt 00:00:21]} Nxd5 {[%clk 00:31:20]} {[%emt 00:02:14]} 27. N5e4
{[%clk 00:25:36]} {[%emt 00:00:43]} Nb4 {[%clk 00:29:48]} {[%emt 00:02:02]} 28.
Ne2 {[%clk 00:19:08]} {[%emt 00:06:57]} Bh6 {[%clk 00:26:36]} {[%emt 00:03:43]}
29. N2c3 {[%clk 00:18:42]} {[%emt 00:00:56]} Nc2 {[%clk 00:23:09]} {[%emt
00:03:57]} 30. Rxd8+ {[%clk 00:16:40]} {[%emt 00:02:32]} Rxd8 {[%clk 00:23:27]}
{[%emt 00:00:13]} 31. Rd1 {[%clk 00:16:12]} {[%emt 00:00:58]} Nd4 {[%clk
00:21:16]} {[%emt 00:02:40]} 32. Nf6+ {[%clk 00:14:42]} {[%emt 00:02:00]} Kh8
{[%clk 00:18:47]} {[%emt 00:02:59]} 33. Kf1 {[%clk 00:11:44]} {[%emt 00:03:28]}
Bg7 {[%clk 00:18:57]} {[%emt 00:00:21]} 34. Nfe4 {[%clk 00:09:40]} {[%emt
00:02:34]} Rc8 {[%clk 00:18:39]} {[%emt 00:00:48]} 35. Ne2 {[%clk 00:07:48]}
{[%emt 00:02:22]} Rc2 {[%clk 00:17:02]} {[%emt 00:02:07]} 36. Nxd4 {[%clk
00:06:57]} {[%emt 00:01:20]} exd4 {[%clk 00:16:49]} {[%emt 00:00:44]} 1/2-1/2

[Event "ONJK 2024 ABC"]
[Site "Velp, Netherlands"]
[Date "2024.08.05"]
[Round "4.15"]
[White "Meert, Maarin"]
[Black "Georgopoulos, Mylo"]
[Result "0-1"]
[TimeControl "90 minutes + 30 seconds"]
[WhiteElo "1811"]
[BlackElo "1776"]

1. c4 {[%clk 01:30:57]} {[%emt 00:00:02]} e6 {[%clk 01:30:57]} {[%emt
00:00:04]} 2. d4 {[%clk 01:31:23]} {[%emt 00:00:04]} Nf6 {[%clk 01:31:23]}
{[%emt 00:00:05]} 3. Nc3 {[%clk 01:30:55]} {[%emt 00:00:58]} Bb4 {[%clk
01:31:49]} {[%emt 00:00:04]} 4. Nf3 {[%clk 01:30:07]} {[%emt 00:01:17]} d5
{[%clk 01:31:58]} {[%emt 00:00:22]} 5. Bg5 {[%clk 01:29:04]} {[%emt 00:01:32]}
h6 {[%clk 01:31:28]} {[%emt 00:01:01]} 6. Bh4 {[%clk 01:28:41]} {[%emt
00:00:52]} g5 {[%clk 01:30:20]} {[%emt 00:01:39]} 7. Bg3 {[%clk 01:27:51]}
{[%emt 00:01:20]} Nbd7 {[%clk 01:28:55]} {[%emt 00:01:55]} 8. e3 {[%clk
01:27:44]} {[%emt 00:00:37]} b6 {[%clk 01:26:56]} {[%emt 00:02:30]} 9. Be2
{[%clk 01:25:10]} {[%emt 00:03:03]} Ba6 {[%clk 01:24:41]} {[%emt 00:02:45]} 10.
Qa4 {[%clk 01:21:34]} {[%emt 00:04:06]} Bxc3+ {[%clk 01:22:22]} {[%emt
00:02:50]} 11. bxc3 {[%clk 01:21:44]} {[%emt 00:00:20]} Bb7 {[%clk 01:21:13]}
{[%emt 00:01:39]} 12. O-O {[%clk 01:15:24]} {[%emt 00:06:49]} O-O {[%clk
01:19:19]} {[%emt 00:02:25]} 13. Rfc1 {[%clk 01:09:20]} {[%emt 00:06:33]} Ne4
{[%clk 01:16:58]} {[%emt 00:02:51]} 14. cxd5 {[%clk 01:08:16]} {[%emt
00:01:34]} Nxg3 {[%clk 01:17:06]} {[%emt 00:00:22]} 15. hxg3 {[%clk 01:08:30]}
{[%emt 00:00:16]} exd5 {[%clk 01:17:14]} {[%emt 00:00:22]} 16. Ba6 {[%clk
01:07:48]} {[%emt 00:01:12]} Bxa6 {[%clk 01:15:37]} {[%emt 00:02:07]} 17. Qxa6
{[%clk 01:07:44]} {[%emt 00:00:33]} c5 {[%clk 01:14:07]} {[%emt 00:02:00]} 18.
c4 {[%clk 00:57:03]} {[%emt 00:11:11]} dxc4 {[%clk 01:07:49]} {[%emt 00:06:48]}
19. Qxc4 {[%clk 00:53:37]} {[%emt 00:03:55]} Rc8 {[%clk 01:06:20]} {[%emt
00:02:00]} 20. Qd3 {[%clk 00:45:45]} {[%emt 00:08:21]} Re8 {[%emt 00:06:22]} 21.
Rc4 {[%clk 00:42:28]} {[%emt 00:03:45]} g4 {[%clk 00:58:09]} {[%emt 00:02:51]}
22. dxc5 {[%clk 00:39:25]} {[%emt 00:03:33]} gxf3 {[%clk 00:52:51]} {[%emt
00:05:48]} 23. Rd4 {[%clk 00:38:35]} {[%emt 00:01:20]} Qf6 {[%clk 00:51:10]}
{[%emt 00:02:12]} 24. Rd1 {[%clk 00:32:47]} {[%emt 00:06:17]} Nxc5 {[%clk
00:50:57]} {[%emt 00:00:44]} 25. Rg4+ {[%clk 00:30:05]} {[%emt 00:03:11]} Kh8
{[%clk 00:49:30]} {[%emt 00:01:57]} 26. Qd4 {[%clk 00:29:08]} {[%emt 00:01:27]}
Qxd4 {[%clk 00:49:31]} {[%emt 00:00:29]} 27. Rdxd4 {[%clk 00:29:10]} {[%emt
00:00:27]} Red8 {[%clk 00:47:44]} {[%emt 00:02:17]} 28. Rdf4 {[%clk 00:28:54]}
{[%emt 00:00:46]} Nd3 {[%clk 00:38:54]} {[%emt 00:09:21]} 29. Rf6 {[%clk
00:28:34]} {[%emt 00:00:50]} Rc1+ {[%clk 00:37:41]} {[%emt 00:01:43]} 30. Kh2
{[%clk 00:28:54]} {[%emt 00:00:10]} Kh7 {[%clk 00:37:52]} {[%emt 00:00:19]} 31.
Rxf7+ {[%clk 00:28:28]} {[%emt 00:00:56]} Kh8 {[%clk 00:38:11]} {[%emt
00:00:10]} 32. Rf6 {[%clk 00:28:37]} {[%emt 00:00:21]} Rh1+ {[%clk 00:38:09]}
{[%emt 00:00:33]} 33. Kxh1 {[%clk 00:28:58]} {[%emt 00:00:08]} Nxf2+ {[%clk
00:38:34]} {[%emt 00:00:05]} 34. Kg1 {[%clk 00:29:09]} {[%emt 00:00:18]} Nxg4
{[%clk 00:38:57]} {[%emt 00:00:08]} 35. Rg6 {[%clk 00:28:45]} {[%emt 00:00:55]}
Rd1# {[%clk 00:39:08]} {[%emt 00:00:19]} 0-1

[Event "ONJK 2024 ABC"]
[Site "Velp, Netherlands"]
[Date "2024.08.05"]
[Round "4.16"]
[White "Hesse, Frederik"]
[Black "Zhao, Nick"]
[Result "1-0"]
[TimeControl "90 minutes + 30 seconds"]
[WhiteElo "1684"]
[BlackElo "1836"]

1. e4 {[%clk 01:30:57]} {[%emt 00:00:03]} e5 {[%clk 01:30:58]} {[%emt
00:00:03]} 2. Nf3 {[%clk 01:31:20]} {[%emt 00:00:06]} Nc6 {[%clk 01:31:24]}
{[%emt 00:00:04]} 3. Bb5 {[%clk 01:31:46]} {[%emt 00:00:04]} a6 {[%clk
01:31:49]} {[%emt 00:00:05]} 4. Ba4 {[%clk 01:32:00]} {[%emt 00:00:16]} Nf6
{[%clk 01:32:13]} {[%emt 00:00:05]} 5. O-O {[%clk 01:31:54]} {[%emt 00:00:37]}
Be7 {[%clk 01:32:36]} {[%emt 00:00:06]} 6. Re1 {[%clk 01:32:14]} {[%emt
00:00:11]} b5 {[%clk 01:33:01]} {[%emt 00:00:05]} 7. Bb3 {[%clk 01:32:37]}
{[%emt 00:00:07]} d6 {[%clk 01:33:16]} {[%emt 00:00:14]} 8. h3 {[%clk
01:32:55]} {[%emt 00:00:12]} Na5 {[%clk 01:31:45]} {[%emt 00:02:01]} 9. c3
{[%clk 01:31:16]} {[%emt 00:02:10]} Nxb3 {[%clk 01:31:58]} {[%emt 00:00:17]} 10.
Qxb3 {[%clk 01:31:15]} {[%emt 00:00:31]} Be6 {[%clk 01:31:08]} {[%emt
00:01:20]} 11. Qd1 {[%emt 00:02:27]} c5 {[%clk 01:29:30]} 12. d4 {[%clk
01:31:26]} {[%emt 00:00:31]} Qc7 {[%clk 01:27:34]} {[%emt 00:02:26]} 13. Bg5
{[%clk 01:28:10]} {[%emt 00:03:46]} O-O {[%clk 01:26:42]} {[%emt 00:01:22]} 14.
Bh4 {[%clk 01:25:42]} {[%emt 00:02:58]} exd4 {[%clk 01:13:55]} {[%emt
00:13:17]} 15. cxd4 {[%clk 01:25:51]} {[%emt 00:00:21]} d5 {[%clk 01:12:47]}
{[%emt 00:01:38]} 16. Nc3 {[%clk 01:22:09]} {[%emt 00:04:12]} Nxe4 {[%clk
01:07:01]} {[%emt 00:06:17]} 17. Nxe4 {[%clk 01:21:34]} {[%emt 00:01:05]} dxe4
{[%clk 01:07:20]} {[%emt 00:00:11]} 18. Bxe7 {[%clk 01:20:50]} {[%emt
00:01:14]} Qxe7 {[%clk 01:07:44]} {[%emt 00:00:05]} 19. Rxe4 {[%clk 01:20:56]}
{[%emt 00:00:24]} Rfd8 {[%clk 00:52:12]} {[%emt 00:16:02]} 20. Qe1 {[%clk
01:14:07]} {[%emt 00:07:20]} c4 {[%clk 00:50:12]} {[%emt 00:02:30]} 21. Rd1
{[%clk 01:13:51]} {[%emt 00:00:41]} Qd6 {[%clk 00:43:33]} {[%emt 00:07:14]} 22.
d5 {[%clk 01:02:46]} {[%emt 00:11:35]} Bf5 {[%clk 00:36:11]} {[%emt 00:07:52]}
23. Re3 {[%clk 01:00:28]} {[%emt 00:02:48]} Bd7 {[%clk 00:25:36]} {[%emt
00:11:05]} 24. Ne5 {[%clk 00:56:07]} {[%emt 00:04:51]} Re8 {[%clk 00:24:14]}
{[%emt 00:01:51]} 25. Nxd7 {[%clk 00:55:51]} {[%emt 00:00:47]} Qxd7 {[%clk
00:24:39]} {[%emt 00:00:06]} 26. d6 {[%clk 00:55:36]} {[%emt 00:00:45]} Rxe3
{[%clk 00:23:46]} {[%emt 00:01:22]} 27. Qxe3 {[%clk 00:55:44]} {[%emt
00:00:22]} Re8 {[%clk 00:24:10]} {[%emt 00:00:06]} 28. Qb6 {[%clk 00:54:13]}
{[%emt 00:02:01]} h6 {[%clk 00:22:51]} {[%emt 00:01:50]} 29. Qxa6 {[%clk
00:53:29]} {[%emt 00:01:15]} f6 {[%clk 00:16:36]} {[%emt 00:06:45]} 30. Qb6
{[%clk 00:51:47]} {[%emt 00:02:11]} Kf7 {[%clk 00:15:47]} {[%emt 00:01:18]} 31.
Kh2 {[%clk 00:51:22]} {[%emt 00:00:55]} Re5 {[%clk 00:15:48]} {[%emt 00:00:30]}
32. f4 {[%clk 00:50:34]} {[%emt 00:01:19]} Re4 {[%clk 00:14:46]} {[%emt
00:01:32]} 33. Qc7 {[%clk 00:50:40]} {[%emt 00:00:24]} Ke6 {[%clk 00:14:53]}
{[%emt 00:00:22]} 34. f5+ {[%clk 00:50:53]} {[%emt 00:01:36]} 1-0

[Event "ONJK 2024 ABC"]
[Site "Velp, Netherlands"]
[Date "2024.08.05"]
[Round "4.17"]
[White "Vogels, Mathijs"]
[Black "Peeters, Yumi"]
[Result "1-0"]
[TimeControl "90 minutes + 30 seconds"]
[WhiteElo "1732"]
[BlackElo "1671"]

1. e4 {[%clk 01:30:55]} {[%emt 00:00:04]} c5 {[%clk 01:30:55]} {[%emt
00:00:06]} 2. Nc3 {[%clk 01:31:19]} {[%emt 00:00:06]} e6 {[%clk 01:31:15]}
{[%emt 00:00:10]} 3. g3 {[%clk 01:31:42]} {[%emt 00:00:07]} d5 {[%clk
01:31:35]} {[%emt 00:00:11]} 4. exd5 {[%clk 01:31:36]} {[%emt 00:00:36]} exd5
{[%clk 01:31:57]} {[%emt 00:00:07]} 5. d4 {[%clk 01:31:40]} {[%emt 00:00:26]}
Nc6 {[%clk 01:31:52]} {[%emt 00:00:35]} 6. Nge2 {[%clk 01:31:48]} {[%emt
00:00:22]} Bg4 {[%clk 01:31:05]} {[%emt 00:01:18]} 7. Bg2 {[%clk 01:29:53]}
{[%emt 00:02:24]} Nxd4 {[%clk 01:29:23]} {[%emt 00:02:12]} 8. O-O {[%clk
01:27:50]} {[%emt 00:02:34]} Be7 {[%clk 01:21:16]} {[%emt 00:08:37]} 9. f3
{[%clk 01:26:56]} {[%emt 00:01:24]} Nxe2+ {[%clk 01:20:49]} {[%emt 00:00:58]}
10. Qxe2 {[%clk 01:27:16]} {[%emt 00:00:09]} Be6 {[%clk 01:21:06]} {[%emt
00:00:12]} 11. f4 {[%clk 01:27:06]} {[%emt 00:00:41]} Nf6 {[%clk 01:21:00]}
{[%emt 00:00:36]} 12. f5 {[%clk 01:26:35]} {[%emt 00:01:01]} d4 {[%clk
01:17:34]} {[%emt 00:03:56]} 13. fxe6 {[%clk 01:26:24]} {[%emt 00:00:42]} dxc3
{[%clk 01:17:50]} {[%emt 00:00:14]} 14. exf7+ {[%clk 01:26:41]} {[%emt
00:00:12]} Kxf7 {[%clk 01:17:47]} {[%emt 00:00:33]} 15. Qc4+ {[%clk 01:26:35]}
{[%emt 00:00:36]} Kf8 {[%clk 01:17:12]} {[%emt 00:01:05]} 16. Qxc3 {[%clk
01:26:38]} {[%emt 00:00:28]} Rb8 {[%clk 01:17:17]} {[%emt 00:00:24]} 17. Bf4
{[%clk 01:26:50]} {[%emt 00:00:18]} Bd6 {[%clk 01:17:09]} {[%emt 00:00:38]} 18.
Rad1 {[%clk 01:26:57]} {[%emt 00:00:23]} Ne8 {[%clk 01:16:13]} {[%emt
00:01:26]} 19. Bxd6+ {[%clk 01:27:09]} {[%emt 00:00:18]} Kg8 {[%clk 01:16:28]}
{[%emt 00:00:15]} 20. Rf8# {[%clk 01:27:06]} {[%emt 00:00:03]} 1-0

[Event "ONJK 2024 ABC"]
[Site "Velp, Netherlands"]
[Date "2024.08.05"]
[Round "4.18"]
[White "Burger, Dominick"]
[Black "Maes, Lander"]
[Result "1-0"]
[TimeControl "90 minutes + 30 seconds"]
[WhiteElo "1686"]
[BlackElo "1645"]

1. e4 {[%clk 01:30:47]} {[%emt 00:00:13]} c5 {[%clk 01:30:55]} {[%emt
00:00:06]} 2. Nf3 {[%clk 01:30:30]} {[%emt 00:00:46]} d6 {[%clk 01:31:13]}
{[%emt 00:00:13]} 3. c3 {[%clk 01:30:56]} {[%emt 00:00:04]} Nf6 {[%clk
01:31:31]} {[%emt 00:00:12]} 4. Qc2 {[%clk 01:31:20]} {[%emt 00:00:06]} g6
{[%clk 01:30:59]} {[%emt 00:01:02]} 5. d4 {[%clk 01:31:39]} {[%emt 00:00:12]}
cxd4 {[%clk 01:30:55]} {[%emt 00:00:33]} 6. cxd4 {[%clk 01:31:57]} {[%emt
00:00:12]} e6 {[%clk 01:17:30]} {[%emt 00:13:56]} 7. Bg5 {[%clk 01:28:09]}
{[%emt 00:04:16]} h6 {[%clk 01:14:37]} {[%emt 00:03:23]} 8. Bxf6 {[%clk
01:28:32]} {[%emt 00:00:08]} Qxf6 {[%clk 01:13:32]} {[%emt 00:01:34]} 9. Qxc8+
{[%clk 01:28:53]} {[%emt 00:00:10]} Qd8 {[%clk 01:13:16]} {[%emt 00:00:46]} 10.
Qxb7 {[%clk 01:29:11]} {[%emt 00:00:13]} Nd7 {[%clk 01:13:26]} {[%emt
00:00:19]} 11. Bb5 {[%clk 01:29:23]} {[%emt 00:00:17]} Rc8 {[%clk 01:11:33]}
{[%emt 00:02:24]} 12. Bxd7+ {[%clk 01:26:50]} {[%emt 00:03:03]} Qxd7 {[%clk
01:11:55]} {[%emt 00:00:08]} 13. Qxd7+ {[%clk 01:27:17]} {[%emt 00:00:02]} Kxd7
{[%clk 01:12:17]} {[%emt 00:00:09]} 14. Nc3 {[%clk 01:27:38]} {[%emt 00:00:08]}
Be7 {[%clk 01:09:11]} {[%emt 00:03:36]} 15. Kd2 {[%clk 01:27:38]} {[%emt
00:00:30]} Rb8 {[%clk 01:07:59]} {[%emt 00:01:42]} 16. Rab1 {[%clk 01:26:57]}
{[%emt 00:01:11]} g5 {[%clk 01:06:47]} {[%emt 00:01:42]} 17. g4 {[%clk
01:25:04]} {[%emt 00:02:23]} h5 {[%clk 01:05:44]} {[%emt 00:01:34]} 18. h3
{[%clk 01:23:44]} {[%emt 00:01:49]} hxg4 {[%clk 01:05:08]} {[%emt 00:01:06]} 19.
hxg4 {[%clk 01:23:55]} {[%emt 00:00:20]} Rxh1 {[%clk 01:05:33]} {[%emt
00:00:04]} 20. Rxh1 {[%clk 01:24:22]} {[%emt 00:00:03]} Rxb2+ {[%clk 01:05:56]}
{[%emt 00:00:07]} 21. Ke3 {[%clk 01:23:31]} {[%emt 00:01:21]} Rc2 {[%clk
01:05:05]} {[%emt 00:01:21]} 22. Nb1 {[%clk 01:21:26]} {[%emt 00:02:33]} Rxa2
{[%clk 01:03:47]} {[%emt 00:01:50]} 23. Rh5 {[%clk 01:21:20]} {[%emt 00:00:36]}
Rb2 {[%clk 00:59:58]} {[%emt 00:04:19]} 24. Nbd2 {[%clk 01:20:25]} {[%emt
00:01:25]} Rb5 {[%clk 00:57:00]} {[%emt 00:03:29]} 25. e5 {[%clk 01:19:04]}
{[%emt 00:01:51]} dxe5 {[%clk 00:55:58]} {[%emt 00:01:31]} 26. Nxe5+ {[%clk
01:19:11]} {[%emt 00:00:23]} Kc7 {[%clk 00:48:14]} {[%emt 00:08:14]} 27. Nxf7
{[%clk 01:19:06]} {[%emt 00:00:35]} Kc6 {[%clk 00:39:24]} {[%emt 00:09:20]} 28.
Ne5+ {[%clk 01:19:23]} {[%emt 00:00:13]} Kd5 {[%clk 00:39:41]} {[%emt
00:00:14]} 29. Rh7 {[%clk 01:19:17]} {[%emt 00:00:34]} Bd6 {[%clk 00:35:37]}
{[%emt 00:04:35]} 30. Rg7 {[%clk 01:18:41]} {[%emt 00:01:06]} Bxe5 {[%clk
00:31:26]} {[%emt 00:04:41]} 31. dxe5 {[%clk 01:19:00]} {[%emt 00:00:11]} a5
{[%clk 00:30:39]} {[%emt 00:01:18]} 32. Rxg5 {[%clk 01:17:53]} {[%emt
00:01:37]} a4 {[%clk 00:29:38]} {[%emt 00:01:31]} 33. Rh5 {[%clk 01:17:34]}
{[%emt 00:00:48]} a3 {[%clk 00:29:05]} {[%emt 00:01:04]} 34. Rh1 {[%clk
01:17:35]} {[%emt 00:00:28]} Rb4 {[%clk 00:24:00]} {[%emt 00:05:36]} 35. f4
{[%clk 01:17:24]} {[%emt 00:00:40]} a2 {[%clk 00:22:32]} {[%emt 00:01:59]} 36.
g5 {[%clk 01:17:20]} {[%emt 00:00:33]} Ra4 {[%clk 00:22:14]} {[%emt 00:00:48]}
37. Ra1 {[%clk 01:15:45]} {[%emt 00:02:06]} Ra3+ {[%clk 00:20:23]} {[%emt
00:02:20]} 38. Kf2 {[%clk 01:15:55]} {[%emt 00:00:20]} Kd4 {[%clk 00:19:48]}
{[%emt 00:01:05]} 39. g6 {[%clk 01:15:15]} {[%emt 00:01:10]} Kc3 {[%clk
00:14:46]} {[%emt 00:05:32]} 40. g7 {[%clk 01:15:01]} {[%emt 00:00:45]} Ra8
{[%clk 00:12:31]} {[%emt 00:02:45]} 41. Ne4+ {[%clk 01:15:01]} {[%emt
00:00:29]} Kb2 {[%clk 00:10:36]} {[%emt 00:02:26]} 42. Rxa2+ {[%clk 01:15:24]}
{[%emt 00:00:07]} Kxa2 {[%clk 00:10:39]} {[%emt 00:00:27]} 43. Nf6 {[%clk
01:15:47]} {[%emt 00:00:06]} Kb3 {[%clk 00:10:56]} {[%emt 00:00:13]} 44. g8=Q
{[%clk 01:16:09]} {[%emt 00:00:08]} Rxg8 {[%clk 00:11:15]} {[%emt 00:00:11]} 45.
Nxg8 {[%clk 01:16:33]} {[%emt 00:00:06]} Kc4 {[%clk 00:11:37]} {[%emt
00:00:09]} 46. Kf3 {[%clk 01:16:53]} {[%emt 00:00:08]} Kd5 {[%clk 00:11:38]}
{[%emt 00:00:30]} 47. Kg4 {[%clk 01:17:12]} {[%emt 00:00:11]} Ke4 {[%clk
00:11:34]} {[%emt 00:00:34]} 48. Kg5 {[%clk 01:17:33]} {[%emt 00:00:09]} Kd5
{[%clk 00:10:59]} {[%emt 00:01:05]} 49. Kf6 {[%clk 01:17:55]} {[%emt 00:00:08]}
Ke4 {[%clk 00:11:20]} {[%emt 00:00:09]} 50. Kxe6 {[%clk 01:18:18]} {[%emt
00:00:07]} Kxf4 {[%clk 00:11:44]} {[%emt 00:00:06]} 51. Kf6 {[%clk 01:18:40]}
{[%emt 00:00:08]} Kg3 {[%clk 00:11:55]} {[%emt 00:00:20]} 52. e6 {[%clk
01:19:03]} {[%emt 00:00:07]} Kh4 {[%clk 00:12:14]} {[%emt 00:00:11]} 53. e7
{[%clk 01:19:21]} {[%emt 00:00:11]} Kg3 {[%clk 00:12:31]} {[%emt 00:00:13]} 54.
e8=Q {[%emt 00:00:05]} Kh4 {[%clk 00:12:51]} {[%emt 00:00:10]} 55. Qg6 {[%clk
01:20:08]} {[%emt 00:00:08]} Kh3 {[%clk 00:13:10]} {[%emt 00:00:11]} 56. Kf5
{[%clk 01:20:35]} {[%emt 00:00:03]} Kh2 {[%clk 00:13:29]} {[%emt 00:00:11]} 57.
Kf4 {[%clk 01:21:02]} {[%emt 00:00:03]} Kh3 {[%clk 00:13:33]} {[%emt 00:00:26]}
58. Qg3+ {[%clk 01:21:00]} {[%emt 00:00:01]} 1-0